fUST/lending_fUST_20240905
["ID","MTS","AMOUNT","RATE_DAILY","PERIOD"]
[337230315,1725515441577,-951.53,0.00022465,2]
[337230316,1725515441586,-736.26,0.00022465,2]
[337230317,1725515441596,-250.0,0.00022465,7]
[337230318,1725515441606,-500.0,0.00022465,2]
[337230319,1725515441619,-250.0,0.00022465,7]
[337230320,1725515441634,-679.13,0.00022465,2]
[337230321,1725515441644,-731.7,0.00022465,2]
[337230322,1725515441653,-500.0,0.00022465,2]
[337230323,1725515441663,-778.17,0.00022465,2]
[337230324,1725515441673,-5258.93,0.00022465,2]
[337230325,1725515441682,-2686.74,0.00022465,2]
[337230326,1725515441692,-503.97,0.00022465,2]
[337230327,1725515441702,-699.26,0.00022465,2]
[337230328,1725515441711,-5054.83,0.00022465,2]
[337230329,1725515441720,-853.47,0.00022465,2]
[337230330,1725515441730,-500.0,0.00022465,2]
[337230331,1725515441740,-500.0,0.00022465,2]
[337230332,1725515441750,-500.0,0.00022465,2]
[337230333,1725515441760,-500.0,0.00022465,2]
[337230334,1725515441769,-4084.43,0.00022465,2]
[337230335,1725515441779,-500.0,0.00022465,2]
[337230336,1725515441789,-500.0,0.00022465,2]
[337230337,1725515441799,-500.0,0.00022465,2]
[337230338,1725515441809,-500.0,0.00022465,2]
[337230339,1725515441819,-500.0,0.00022465,2]
[337230340,1725515441828,-857.32,0.00022465,2]
[337230341,1725515441839,-500.0,0.00022465,2]
[337230342,1725515441849,-500.0,0.00022465,2]
[337230343,1725515441860,-500.0,0.00022465,2]
[337230344,1725515441870,-594.75,0.00022465,2]
[337230345,1725515441887,-1133.4,0.00022465,2]
[337230346,1725515441896,-500.0,0.00022465,2]
[337230347,1725515441906,-444.98989823,0.00022465,2]
[337230348,1725515441915,-4854.01,0.00022465,2]
[337230349,1725515441924,-500.0,0.00022465,2]
[337230350,1725515441934,-1090.07,0.00022465,2]
[337230351,1725515441944,-500.0,0.00022465,2]
[337230352,1725515441954,-500.0,0.00022465,2]
[337230353,1725515441964,-624.96,0.00022465,2]
[337230354,1725515441974,-759.01,0.00022465,2]
[337230355,1725515441983,-500.0,0.00022465,2]
[337230356,1725515441993,-229.43268663,0.00022465,2]
[337230357,1725515442003,-1905.21,0.00022465,2]
[337230358,1725515442012,-500.0,0.00022465,2]
[337230359,1725515442022,-500.0,0.00022465,2]
[337230360,1725515442032,-627.83,0.00022465,2]
[337230361,1725515442042,-995.52,0.00022465,2]
[337230362,1725515442051,-500.0,0.00022465,2]
[337230363,1725515442060,-674.27,0.00022465,2]
[337230364,1725515442070,-516.76,0.00022465,2]
[337230365,1725515442080,-619.38,0.00022465,2]
[337230366,1725515442090,-500.0,0.00022465,2]
[337230367,1725515442101,-500.0,0.00022465,2]
[337230368,1725515442112,-931.55,0.00022465,2]
[337230369,1725515442123,-500.0,0.00022465,2]
[337230370,1725515442134,-500.0,0.00022465,2]
[337230371,1725515442144,-500.0,0.00022465,2]
[337230372,1725515442154,-3657.99,0.00022465,2]
[337230373,1725515442164,-500.0,0.00022465,2]
[337230374,1725515442174,-500.0,0.00022465,2]
[337230375,1725515442184,-867.0,0.00022465,2]
[337230376,1725515442194,-1274.7,0.00022465,2]
[337230377,1725515442204,-619.0,0.00022465,2]
[337230378,1725515442213,-852.52,0.00022465,2]
[337230379,1725515442223,-500.0,0.00022465,2]
[337230380,1725515442233,-500.0,0.00022465,2]
[337230381,1725515442244,-2003.5,0.00022465,2]
[337230382,1725515442448,-854.85,0.00022465,2]
[337230383,1725515442458,-894.12,0.00022465,2]
[337230384,1725515442469,-500.0,0.00022465,2]
[337230385,1725515442478,-500.0,0.00022465,2]
[337230386,1725515442488,-9404.65,0.00022465,2]
[337230387,1725515442499,-674.12,0.00022465,2]
[337230388,1725515442509,-500.0,0.00022465,2]
[337230389,1725515442518,-487.35027421,0.00022465,2]
[337230390,1725515442527,-180.20688135,0.00022465,2]
[337230391,1725515442537,-336.05917198,0.00022465,2]
[337230392,1725515442546,-500.0,0.00022465,2]
[337230393,1725515442556,-500.0,0.00022465,2]
[337230394,1725515442565,-500.0,0.00022465,2]
[337230395,1725515442575,-4268.26,0.00022465,2]
[337230396,1725515442583,-500.0,0.00022465,2]
[337230397,1725515442593,-599.59,0.00022465,2]
[337230398,1725515442602,-500.0,0.00022465,2]
[337230399,1725515442611,-967.78,0.00022465,2]
[337230400,1725515442621,-500.0,0.00022465,2]
[337230401,1725515442632,-5250.98,0.00022465,2]
[337230402,1725515442642,-500.0,0.00022465,2]
[337230403,1725515442652,-500.0,0.00022465,2]
[337230404,1725515442661,-500.0,0.00022465,2]
[337230405,1725515442670,-807.01,0.00022465,2]
[337230406,1725515442680,-1521.49,0.00022465,2]
[337230407,1725515442690,-500.0,0.00022465,2]
[337230408,1725515442699,-2517.88,0.00022465,2]
[337230409,1725515442708,-513.88,0.00022465,2]
[337230410,1725515442718,-500.0,0.00022465,2]
[337230411,1725515442729,-500.0,0.00022465,2]
[337230412,1725515442740,-500.0,0.00022465,2]
[337230413,1725515442750,-500.0,0.00022465,2]
[337230414,1725515442760,-500.0,0.00022465,2]
[337230415,1725515442770,-500.0,0.00022465,2]
[337230416,1725515442780,-500.0,0.00022465,2]
[337230417,1725515442789,-1571.71,0.00022465,2]
[337230418,1725515442799,-500.0,0.00022465,2]
[337230419,1725515442808,-884.95,0.00022465,2]
[337230420,1725515442818,-500.0,0.00022465,2]
[337230421,1725515442828,-500.0,0.00022465,2]
[337230422,1725515442838,-500.0,0.00022465,2]
[337230423,1725515442847,-500.0,0.00022465,2]
[337230424,1725515442857,-500.0,0.00022465,2]
[337230425,1725515442866,-500.0,0.00022465,2]
[337230426,1725515442875,-184.76786379,0.00022721,2]
[337230427,1725515442885,-517.38205163,0.00022721,2]
[337230428,1725515442894,-1000.0,0.00022721,2]
[337230429,1725515442904,-500.0,0.00022739,2]
[337230430,1725515442913,-1112.73,0.00022739,2]
[337230431,1725515442923,-500.0,0.00022739,2]
[337230432,1725515442932,-1052.21,0.00022739,2]
[337230434,1725515442942,-500.0,0.00022739,2]
[337230436,1725515442951,-384.05228575,0.00022739,2]
[337230437,1725515442961,-500.0,0.00022739,2]
[337230438,1725515442971,-594.3535986,0.00022739,2]
[337230439,1725515442980,-536.92,0.00022739,2]
[337230440,1725515442990,-500.0,0.00022739,2]
[337230441,1725515443000,-500.0,0.00022739,2]
[337230442,1725515443010,-500.0,0.00022739,2]
[337230443,1725515443019,-500.0,0.00022739,2]
[337230444,1725515443029,-500.0,0.00022739,2]
[337230445,1725515443039,-500.0,0.00022739,2]
[337230446,1725515443049,-500.0,0.00022739,2]
[337230447,1725515443058,-500.0,0.00022739,2]
[337230448,1725515443068,-500.0,0.00022739,2]
[337230449,1725515443077,-500.0,0.00022739,2]
[337230450,1725515443087,-500.0,0.00022739,2]
[337230451,1725515443097,-500.0,0.00022739,2]
[337230452,1725515443106,-500.0,0.00022739,2]
[337230453,1725515443116,-500.0,0.00022739,2]
[337230454,1725515443128,-515.5,0.00022739,2]
[337230455,1725515443137,-500.0,0.00022739,2]
[337230456,1725515443147,-635.6,0.00022739,2]
[337230457,1725515443156,-151.0,0.00022739,7]
[337230458,1725515443166,-500.0,0.00022739,2]
[337230459,1725515443176,-573.57,0.00022739,2]
[337230460,1725515443186,-500.0,0.00022739,2]
[337230461,1725515443196,-500.0,0.00022739,2]
[337230462,1725515443205,-500.0,0.00022739,2]
[337230463,1725515443215,-500.0,0.00022739,2]
[337230464,1725515443225,-636.90411862,0.00022739,2]
[337230465,1725515443234,-500.0,0.00022739,2]
[337230466,1725515443245,-810.49,0.00022739,2]
[337230467,1725515443255,-567.77,0.00022739,2]
[337230468,1725515443269,-500.0,0.00022739,2]
[337230469,1725515443279,-640.79,0.00022739,2]
[337230471,1725515443289,-550.53,0.00022739,2]
[337230473,1725515443299,-500.0,0.00022739,2]
[337230474,1725515443310,-500.0,0.00022739,2]
[337230475,1725515443319,-500.0,0.00022739,2]
[337230476,1725515443330,-500.0,0.00022739,2]
[337230477,1725515443340,-500.0,0.00022739,2]
[337230479,1725515443352,-500.0,0.00022739,2]
[337230481,1725515443362,-500.0,0.00022739,2]
[337230483,1725515443371,-500.0,0.00022739,2]
[337230485,1725515443382,-500.0,0.00022739,2]
[337230487,1725515443392,-500.0,0.00022739,2]
[337230489,1725515443402,-700.09,0.00022739,2]
[337230490,1725515443412,-500.0,0.00022739,2]
[337230491,1725515443422,-500.0,0.00022739,2]
[337230492,1725515443433,-500.0,0.00022739,2]
[337230493,1725515443443,-500.0,0.00022739,2]
[337230494,1725515443453,-184.16651641,0.00022739,2]
[337230495,1725515443463,-500.0,0.00022739,2]
[337230496,1725515443473,-500.0,0.00022739,2]
[337230497,1725515443482,-500.0,0.00022739,2]
[337230498,1725515443492,-972.52,0.00022739,2]
[337230499,1725515443501,-545.31874845,0.00022739,2]
[337230500,1725515443511,-500.0,0.00022739,2]
[337230501,1725515443520,-500.0,0.00022739,2]
[337230502,1725515443530,-500.0,0.00022739,2]
[337230503,1725515443539,-500.0,0.00022739,2]
[337230504,1725515443548,-500.0,0.00022739,2]
[337230505,1725515443558,-500.0,0.00022739,2]
[337230506,1725515443568,-500.0,0.00022739,2]
[337230507,1725515443577,-500.0,0.00022739,2]
[337230508,1725515443586,-500.0,0.00022739,2]
[337230509,1725515443596,-500.0,0.00022739,2]
[337230510,1725515443605,-865.36,0.00022739,2]
[337230511,1725515443615,-1005.29,0.00022739,2]
[337230512,1725515443624,-559.7,0.00022739,2]
[337230513,1725515443633,-500.0,0.00022739,2]
[337230514,1725515443642,-500.0,0.00022739,2]
[337230515,1725515443652,-639.43,0.00022739,2]
[337230516,1725515443661,-500.0,0.00022739,2]
[337230517,1725515443670,-1173.58,0.00022739,2]
[337230518,1725515443679,-500.0,0.00022739,2]
[337230519,1725515443689,-508.4,0.00022739,2]
[337230520,1725515443698,-500.0,0.00022739,2]
[337230522,1725515443708,-1055.72,0.00022739,2]
[337230523,1725515443717,-500.0,0.00022739,2]
[337230525,1725515443726,-500.0,0.00022739,2]
[337230527,1725515443736,-500.0,0.00022739,2]
[337230529,1725515443746,-561.76,0.00022739,2]
[337230531,1725515443755,-500.0,0.00022739,2]
[337230533,1725515443764,-500.0,0.00022739,2]
[337230535,1725515443774,-500.0,0.00022739,2]
[337230536,1725515443783,-1386.01,0.00022739,2]
[337230539,1725515443792,-875.32,0.00022739,2]
[337230540,1725515443802,-500.0,0.00022739,2]
[337230541,1725515443811,-500.0,0.00022739,2]
[337230542,1725515443821,-500.0,0.00022739,2]
[337230543,1725515443830,-530.29967241,0.00022739,2]
[337230544,1725515443840,-500.0,0.00022739,2]
[337230545,1725515443849,-500.0,0.00022739,2]
[337230546,1725515443860,-500.0,0.00022739,2]
[337230547,1725515443869,-615.66,0.00022739,2]
[337230548,1725515443878,-832.07,0.00022739,2]
[337230549,1725515443888,-500.0,0.00022739,2]
[337230550,1725515443897,-500.0,0.00022739,2]
[337230551,1725515443906,-500.0,0.00022739,2]
[337230552,1725515443915,-818.2,0.00022739,2]
[337230553,1725515443924,-500.0,0.00022739,2]
[337230554,1725515443934,-234.03079294,0.00022739,2]
[337230555,1725515443943,-500.0,0.00022739,2]
[337230556,1725515443953,-500.0,0.00022739,2]
[337230557,1725515443962,-500.0,0.00022739,2]
[337230558,1725515443972,-773.22,0.00022739,2]
[337230559,1725515443981,-500.0,0.00022739,2]
[337230560,1725515443990,-605.67563341,0.00022739,2]
[337230561,1725515444001,-934.12,0.00022739,2]
[337230562,1725515444011,-500.0,0.00022739,2]
[337230563,1725515444021,-965.9,0.00022739,2]
[337230564,1725515444032,-500.86,0.00022739,2]
[337230565,1725515444042,-576.75,0.00022739,2]
[337230566,1725515444051,-500.0,0.00022739,2]
[337230567,1725515444060,-500.0,0.00022739,2]
[337230568,1725515444069,-500.0,0.00022739,2]
[337230569,1725515444079,-542.56,0.00022739,2]
[337230570,1725515444089,-500.0,0.00022739,2]
[337230571,1725515444098,-500.0,0.00022739,2]
[337230572,1725515444107,-500.0,0.00022739,2]
[337230573,1725515444117,-500.0,0.00022739,2]
[337230574,1725515444126,-500.0,0.00022739,2]
[337230575,1725515444135,-997.48,0.00022739,2]
[337230576,1725515444144,-500.0,0.00022739,2]
[337230577,1725515444154,-500.0,0.00022739,2]
[337230578,1725515444163,-500.0,0.00022739,2]
[337230579,1725515444172,-500.0,0.00022739,2]
[337230580,1725515444182,-500.0,0.00022739,2]
[337230581,1725515444191,-609.6003712,0.00022739,2]
[337230582,1725515444201,-8269.62,0.00022739,2]
[337230583,1725515444210,-500.0,0.00022739,2]
[337230584,1725515444220,-4005.3,0.00022739,2]
[337230585,1725515444229,-435.69474886,0.00022739,2]
[337230586,1725515444240,-500.0,0.00022739,2]
[337230587,1725515444250,-500.0,0.00022739,2]
[337230588,1725515444260,-500.0,0.00022739,2]
[337230589,1725515444270,-549.5,0.00022739,2]
[337230590,1725515444279,-500.0,0.00022739,2]
[337230591,1725515444290,-866.85,0.00022739,2]
[337230592,1725515444301,-500.0,0.00022739,2]
[337230593,1725515444311,-2910.86,0.00022739,2]
[337230594,1725515444321,-500.0,0.00022739,2]
[337230595,1725515444331,-500.0,0.00022739,2]
[337230596,1725515444341,-559.11,0.00022739,2]
[337230597,1725515444351,-2126.17,0.00022739,2]
[337230598,1725515444361,-500.0,0.00022739,2]
[337230599,1725515444371,-2648.09,0.00022739,2]
[337230600,1725515444381,-500.0,0.00022739,2]
[337230601,1725515444390,-500.0,0.00022739,2]
[337230602,1725515444399,-500.0,0.00022739,2]
[337230603,1725515444408,-500.0,0.00022739,2]
[337230604,1725515444418,-500.0,0.00022739,2]
[337230605,1725515444428,-567.91,0.00022739,2]
[337230606,1725515444438,-500.0,0.00022739,2]
[337230607,1725515444447,-951.53,0.00022739,2]
[337230608,1725515444457,-736.26,0.00022739,2]
[337230609,1725515444467,-250.0,0.00022739,7]
[337230610,1725515444477,-500.0,0.00022739,2]
[337230611,1725515444486,-250.0,0.00022739,7]
[337230612,1725515444496,-679.13,0.00022739,2]
[337230613,1725515444506,-731.7,0.00022739,2]
[337230614,1725515444515,-500.0,0.00022739,2]
[337230615,1725515444524,-778.17,0.00022739,2]
[337230616,1725515444533,-5258.93,0.00022739,2]
[337230617,1725515444543,-2686.74,0.00022739,2]
[337230618,1725515444552,-503.97,0.00022739,2]
[337230619,1725515444562,-699.26,0.00022739,2]
[337230620,1725515444572,-5054.83,0.00022739,2]
[337230621,1725515444583,-853.47,0.00022739,2]
[337230622,1725515444594,-500.0,0.00022739,2]
[337230623,1725515444606,-500.0,0.00022739,2]
[337230624,1725515444618,-500.0,0.00022739,2]
[337230625,1725515444630,-500.0,0.00022739,2]
[337230626,1725515444639,-4084.43,0.00022739,2]
[337230627,1725515444649,-500.0,0.00022739,2]
[337230628,1725515444660,-500.0,0.00022739,2]
[337230629,1725515444671,-500.0,0.00022739,2]
[337230630,1725515444684,-500.0,0.00022739,2]
[337230631,1725515444694,-500.0,0.00022739,2]
[337230632,1725515444704,-857.32,0.00022739,2]
[337230633,1725515444715,-500.0,0.00022739,2]
[337230634,1725515444727,-500.0,0.00022739,2]
[337230635,1725515444736,-500.0,0.00022739,2]
[337230636,1725515444747,-594.75,0.00022739,2]
[337230637,1725515444757,-1133.4,0.00022739,2]
[337230638,1725515444766,-500.0,0.00022739,2]
[337230639,1725515444776,-4854.01,0.00022739,2]
[337230640,1725515444785,-500.0,0.00022739,2]
[337230641,1725515444795,-1090.07,0.00022739,2]
[337230642,1725515444804,-500.0,0.00022739,2]
[337230643,1725515444813,-624.96,0.00022739,2]
[337230644,1725515444823,-500.0,0.00022739,2]
[337230645,1725515444832,-759.01,0.00022739,2]
[337230646,1725515444842,-500.0,0.00022739,2]
[337230647,1725515444852,-1905.21,0.00022739,2]
[337230648,1725515444861,-500.0,0.00022739,2]
[337230649,1725515444871,-500.0,0.00022739,2]
[337230650,1725515444881,-627.83,0.00022739,2]
[337230651,1725515444893,-995.52,0.00022739,2]
[337230652,1725515444905,-500.0,0.00022739,2]
[337230653,1725515444920,-674.27,0.00022739,2]
[337230654,1725515444934,-516.76,0.00022739,2]
[337230655,1725515444947,-619.38,0.00022739,2]
[337230656,1725515444959,-500.0,0.00022739,2]
[337230657,1725515444972,-500.0,0.00022739,2]
[337230658,1725515444981,-931.55,0.00022739,2]
[337230659,1725515444991,-500.0,0.00022739,2]
[337230660,1725515445002,-500.0,0.00022739,2]
[337230661,1725515445014,-500.0,0.00022739,2]
[337230662,1725515445025,-3657.99,0.00022739,2]
[337230663,1725515445035,-277.33105091,0.00022739,2]
[337230664,1725515445046,-500.0,0.00022739,2]
[337230665,1725515445058,-867.0,0.00022739,2]
[337230666,1725515445070,-1274.7,0.00022739,2]
[337230667,1725515445082,-619.0,0.00022739,2]
[337230668,1725515445093,-852.52,0.00022739,2]
[337230669,1725515445103,-500.0,0.00022739,2]
[337230670,1725515445116,-500.0,0.00022739,2]
[337230671,1725515445132,-2003.5,0.00022739,2]
[337230672,1725515445146,-854.85,0.00022739,2]
[337230673,1725515445158,-894.12,0.00022739,2]
[337230674,1725515445169,-500.0,0.00022739,2]
[337230675,1725515445180,-500.0,0.00022739,2]
[337230676,1725515445192,-137.65730683,0.00022739,2]
[337230705,1725515688018,10000.0,0.00020448,2]
[337230707,1725515892789,448.8973773,0.00020309,2]
[337230709,1725515931022,231.8596939,0.00020268,2]
[337230710,1725516016974,1662.0273046,0.00020434,2]
[337230713,1725516199214,20082.1544104,0.00020461,2]
[337230715,1725516337374,1000.0,0.00025,60]
[337230716,1725516337995,1000.0,0.00025,60]
[337230717,1725516338530,1000.0,0.00025,60]
[337230718,1725516339088,205.0,0.00025,60]
[337230746,1725516632676,-299.25945273,0.00020611,2]
[337230748,1725516632690,-4083.33766017,0.00020611,2]
[337230749,1725516632701,-654.716715,0.00020986,2]
[337230751,1725516632711,-173.417656,0.00020987,2]
[337230753,1725516632721,-173.417656,0.00021124,2]
[337230755,1725516632732,-173.417656,0.00021261,2]
[337230756,1725516632743,-173.417656,0.00021397,2]
[337230758,1725516632752,-173.417656,0.00021534,2]
[337230760,1725516632762,-41.47511223,0.00021671,2]
[337230762,1725516632774,-131.94254377,0.00021671,2]
[337230765,1725516632784,-1000.0,0.00021807,2]
[337230768,1725516632794,-173.417656,0.00021808,2]
[337230771,1725516632804,-318.64,0.00021896,3]
[337230774,1725516632814,-300.0,0.00021896,2]
[337230777,1725516632824,-300.0,0.00021896,2]
[337230779,1725516632834,-644.52446707,0.00021897,3]
[337230855,1725516638813,-14365.40774421,0.00021897,3]
[337230856,1725516638826,-1619.03510944,0.00021897,3]
[337230867,1725516638927,-619.23245383,0.00021897,3]
[337230964,1725516640942,-159.32,0.00021896,3]
[337230965,1725516640952,-6734.66817009,0.00021897,3]
[337230972,1725516643826,-56319.73434866,0.00021897,3]
[337230973,1725516643836,-150.112233,0.000219,5]
[337230974,1725516643846,-150.0,0.000219,2]
[337230975,1725516643857,-44579.81295817,0.00021906,2]
[337230976,1725516643867,-21414.0272782,0.00021907,3]
[337230977,1725516643877,-500.0,0.00021916,2]
[337230978,1725516643887,-254.94110249,0.00021916,2]
[337230980,1725516643898,-500.0,0.00021917,2]
[337230982,1725516643910,-533.99,0.00021917,2]
[337230983,1725516643921,-500.0,0.00021917,2]
[337230984,1725516643931,-500.0,0.00021917,2]
[337230985,1725516643940,-500.0,0.00021917,2]
[337230986,1725516643953,-500.0,0.00021917,2]
[337230987,1725516643963,-500.0,0.00021917,2]
[337230988,1725516643973,-500.0,0.00021917,2]
[337230989,1725516643983,-500.0,0.00021917,2]
[337230990,1725516643994,-500.0,0.00021917,2]
[337230991,1725516644005,-500.0,0.00021917,2]
[337230992,1725516644018,-500.0,0.00021917,2]
[337230993,1725516644028,-500.0,0.00021917,2]
[337230994,1725516644039,-977.98,0.00021917,2]
[337230995,1725516644050,-500.0,0.00021917,2]
[337230996,1725516644063,-500.0,0.00021917,2]
[337230997,1725516644073,-879.77,0.00021917,2]
[337230998,1725516644083,-500.0,0.00021917,2]
[337230999,1725516644094,-500.0,0.00021917,2]
[337231000,1725516644104,-500.0,0.00021917,2]
[337231001,1725516644114,-500.0,0.00021917,2]
[337231002,1725516644124,-693.4,0.00021917,2]
[337231003,1725516644134,-500.0,0.00021917,2]
[337231004,1725516644144,-500.0,0.00021917,2]
[337231005,1725516644155,-500.0,0.00021917,2]
[337231006,1725516644166,-500.0,0.00021917,2]
[337231007,1725516644176,-500.0,0.00021917,2]
[337231008,1725516644188,-500.0,0.00021917,2]
[337231009,1725516644200,-500.0,0.00021917,2]
[337231010,1725516644210,-500.0,0.00021917,2]
[337231011,1725516644220,-500.0,0.00021917,2]
[337231012,1725516644233,-500.0,0.00021917,2]
[337231013,1725516644244,-500.0,0.00021917,2]
[337231014,1725516644255,-500.0,0.00021917,2]
[337231015,1725516644266,-500.0,0.00021917,2]
[337231016,1725516644278,-500.0,0.00021917,2]
[337231017,1725516644289,-500.0,0.00021917,2]
[337231018,1725516644302,-500.0,0.00021917,2]
[337231019,1725516644314,-419.90375064,0.00021917,2]
[337231020,1725516644326,-583.41,0.00021917,2]
[337231021,1725516644566,-500.0,0.00021917,2]
[337231022,1725516644577,-500.0,0.00021917,2]
[337231023,1725516644587,-500.0,0.00021917,2]
[337231024,1725516644596,-675.41,0.00021917,2]
[337231025,1725516644606,-500.0,0.00021917,2]
[337231026,1725516644616,-500.0,0.00021917,2]
[337231027,1725516644625,-500.0,0.00021917,2]
[337231028,1725516644635,-500.0,0.00021917,2]
[337231029,1725516644645,-500.0,0.00021917,2]
[337231030,1725516644657,-500.0,0.00021917,2]
[337231031,1725516644666,-500.0,0.00021917,2]
[337231032,1725516644676,-500.0,0.00021917,2]
[337231033,1725516644685,-267.84740156,0.00021917,2]
[337231034,1725516644695,-500.0,0.00021917,2]
[337231035,1725516644705,-500.0,0.00021917,2]
[337231036,1725516644714,-500.0,0.00021917,2]
[337231037,1725516644725,-500.0,0.00021917,2]
[337231038,1725516644735,-500.0,0.00021917,2]
[337231039,1725516644744,-500.0,0.00021917,2]
[337231040,1725516644753,-500.87913331,0.00021917,2]
[337231041,1725516644763,-500.0,0.00021917,2]
[337231042,1725516644772,-500.0,0.00021917,2]
[337231043,1725516644782,-500.0,0.00021917,2]
[337231044,1725516644791,-500.0,0.00021917,2]
[337231045,1725516644802,-500.0,0.00021917,2]
[337231046,1725516644812,-500.0,0.00021917,2]
[337231047,1725516644822,-500.0,0.00021917,2]
[337231048,1725516644831,-837.75,0.00021917,2]
[337231049,1725516644841,-500.0,0.00021917,2]
[337231050,1725516644851,-500.0,0.00021917,2]
[337231051,1725516644860,-500.0,0.00021917,2]
[337231052,1725516644870,-532.86,0.00021917,2]
[337231053,1725516644879,-500.0,0.00021917,2]
[337231054,1725516644888,-500.0,0.00021917,2]
[337231055,1725516644897,-810.43,0.00021917,2]
[337231056,1725516644907,-500.0,0.00021917,2]
[337231057,1725516644917,-500.65384713,0.00021917,2]
[337231058,1725516644926,-295.44313731,0.00021917,2]
[337231059,1725516644936,-500.0,0.00021917,2]
[337231060,1725516644947,-500.0,0.00021917,2]
[337231061,1725516644957,-669.02,0.00021917,2]
[337231062,1725516644967,-500.0,0.00021917,2]
[337231063,1725516644976,-500.0,0.00021917,2]
[337231064,1725516644985,-500.0,0.00021917,2]
[337231065,1725516644995,-500.0,0.00021917,2]
[337231066,1725516645006,-1155.01,0.00021917,2]
[337231067,1725516645015,-721.13,0.00021917,2]
[337231068,1725516645024,-500.0,0.00021917,2]
[337231069,1725516645033,-500.0,0.00021917,2]
[337231070,1725516645042,-500.0,0.00021917,2]
[337231071,1725516645051,-500.0,0.00021917,2]
[337231072,1725516645060,-513.05,0.00021917,2]
[337231073,1725516645069,-500.0,0.00021917,2]
[337231074,1725516645078,-683.83,0.00021917,2]
[337231075,1725516645087,-415.85281996,0.00021917,2]
[337231076,1725516645096,-500.0,0.00021917,2]
[337231077,1725516645106,-500.0,0.00021917,2]
[337231078,1725516645115,-681.83,0.00021917,2]
[337231079,1725516645124,-500.0,0.00021917,2]
[337231080,1725516645134,-500.0,0.00021917,2]
[337231081,1725516645143,-239.58682772,0.00021917,2]
[337231082,1725516645152,-610.57110645,0.00021917,2]
[337231083,1725516645161,-500.0,0.00021917,2]
[337231084,1725516645170,-500.0,0.00021917,2]
[337231085,1725516645180,-500.0,0.00021917,2]
[337231086,1725516645190,-778.43,0.00021917,2]
[337231087,1725516645199,-500.0,0.00021917,2]
[337231088,1725516645208,-500.0,0.00021917,2]
[337231089,1725516645218,-500.0,0.00021917,2]
[337231090,1725516645227,-729.43,0.00021917,2]
[337231091,1725516645236,-500.0,0.00021917,2]
[337231092,1725516645245,-532.03292663,0.00021917,2]
[337231093,1725516645254,-500.0,0.00021917,2]
[337231094,1725516645263,-500.0,0.00021917,2]
[337231095,1725516645272,-500.0,0.00021917,2]
[337231096,1725516645282,-500.0,0.00021917,2]
[337231097,1725516645292,-500.0,0.00021917,2]
[337231098,1725516645301,-500.0,0.00021917,2]
[337231099,1725516645311,-644.35,0.00021917,2]
[337231100,1725516645320,-706.13,0.00021917,2]